Cogmind - Beta 14 @@@ ROGUE MODE // 2025.05.04 @ 14:06:37 Player: Charango24 Result: Destroyed by D-53 Grenadier with Mini Grenade Launcher Performance ------------- Evolutions (0) 0 Regions Visited (2) 400 Robots Destroyed (15) 75 Value Destroyed (259) 259 Prototype IDs (0) 0 Alien Tech Used (0) 0 Bonus (0) 0 TOTAL SCORE: 734 Bonus ------- None Cogmind --------- Core Integrity 0/250 Matter 300/300 Energy 100/100 System Corruption 4% Temperature Cool (0) Movement Rolling (100) Location -10/Mines Parts ------- > --- POWER (1) -------- (None) > --- PROPULSION (2) --- Compact Wheel > --- UTILITY (2) ------ Small Storage Unit > --- WEAPON (2) ------- (None) > --- INVENTORY (8) ---- Light Ion Engine Improved Ion Engine Wheel Visual Processing Unit Targeting Computer Hardened Light Armor Plating EM Pulse Gun Grenade Launcher Peak State ------------ > --- POWER ------------ Ion Engine > --- PROPULSION ------- Compact Wheel Compact Wheel > --- UTILITY ---------- Small Storage Unit Hardened Light Armor Plating > --- WEAPON ----------- Light Assault Rifle Light Assault Rifle > --- INVENTORY -------- Light Ion Engine Improved Ion Engine Wheel Visual Processing Unit Signal Interpreter EM Pulse Gun Grenade Launcher Datajack [Rating: 9] Favorites ----------- Power Ion Engine Engine Ion Engine Propulsion Compact Wheel Wheel Compact Wheel Utility Small Storage Unit Storage Small Storage Unit Processor Signal Interpreter Protection Hardened Light Armor Plating Weapon Light Assault Rifle Energy Gun EM Pulse Gun Ballistic Gun Light Assault Rifle Launcher Grenade Launcher Build | -11 -10 -10 ------- Run | Yrd Mat Min Slots Evolved . | . . . Power . | . . . Propulsion . | . . . Utility . | . . . Weapon . | . . . Parts Attached 11 | 7 4 . Power 1 | 1 . . Engine 1 | 1 . . Core . | . . . Reactor . | . . . Propulsion 2 | 2 . . Treads . | . . . Leg . | . . . Wheel 2 | 2 . . Hover . | . . . Flight . | . . . Utility 3 | 1 2 . Device . | . . . Storage 1 | 1 . . Processor 1 | . 1 . Hackware . | . . . Protection 1 | . 1 . Artifact . | . . . Weapon 5 | 3 2 . Energy Gun 1 | 1 . . Energy Cannon . | . . . Ballistic Gun 3 | 2 1 . Ballistic Cannon . | . . . Launcher 1 | . 1 . Special Weapon . | . . . Impact Weapon . | . . . Slashing Weapon . | . . . Piercing Weapon . | . . . Special Melee Weapon . | . . . Unidentified Prototypes . | . . . Parts Lost 6 | . 1 5 Power 1 | . . 1 Propulsion 1 | . . 1 Utility 1 | . . 1 Weapon 3 | . 1 2 Highest Loss Streak 5 | . 1 5 To Critical Strikes . | . . . Average Slot Usage (%) 97 | . 98 92 Engine 14 | . 14 14 Wheel 27 | . 28 26 Storage 14 | . 14 14 Processor 4 | . 2 10 Protection 8 | . 10 . Ballistic Gun 27 | . 27 26 Peak Build Rating 9 | 6 9 8 Average Rating 7 | 4 7 7 On Entrance 4 | . 6 8 Naked Turns . | . . . Heaviest Build 19 | 13 19 12 Greatest Support 32 | 32 32 32 Greatest Overweight (x) . | . . . Average Overweight (x) . | . . . Largest Inventory Capacity 8 | 8 8 8 Average Capacity 7 | 7 8 8 Most Carried 8 | 4 8 8 Average Carried 5 | 1 5 8 Final Capacity 8 | 8 8 8 Final Carried 8 | 2 8 8 Class Distribution -------------------- 100% | Mutant Dominant Class ---------------- Mutant | -10/Materials Mutant | -10/Mines Resources | -11 -10 -10 ----------- Run | Yrd Mat Min Matter Collected 420 | 247 173 . Remotely . | . . . Salvage Created 332 | . 314 18 Parts 29 | . 29 . Haulers Intercepted . | . . . Recyclers Shooed . | . . . Parts Field Recycled . | . . . Retrieved Matter . | . . . Parts Self-Destructed . | . . . Prevented . | . . . Kills | -11 -10 -10 ------- Run | Yrd Mat Min Combat Hostiles Destroyed 12 | . 10 2 Guns 9 | . 7 2 AOE 3 | . 3 . Classes Destroyed 6 | . 5 1 Worker 2 | . 2 . Operator 1 | . 1 . Watcher 2 | . 2 . Swarmer 6 | . 6 . Grunt 4 | . 4 . Assembled 2 | . . 2 Best Kill Streak 7 | . 7 2 Combat Bots Only 5 | . 5 2 Max Kills in Single Turn 4 | . 4 1 Gunslinging . | . . . Exploded 3 | . 3 . Melee . | . . . Uniques/NPCs Destroyed . | . . . Combat | -11 -10 -10 -------- Run | Yrd Mat Min Hostile Shots Fired 55 | . 42 13 Missed 7 | . 5 2 Damage Taken 758 | . 391 367 Core 259 | . 90 169 Absorbed by Shields . | . . . Core Remaining (%) 100 | 100 . . Volleys Fired 42 | . 37 5 Largest 2 | . 2 2 Hottest 50 | . 50 40 Shots Fired 84 | . 74 10 Gun 83 | . 73 10 Cannon . | . . . Launcher 1 | . 1 . Special . | . . . Kinetic 83 | . 73 10 Thermal . | . . . Explosive 1 | . 1 . Electromagnetic . | . . . Robot Hit Streak 5 | . 5 3 Robot Miss Streak 6 | . 6 2 Penetration Max . | . . . Secondary Targets . | . . . Shots Hit Robots 50 | . 44 6 Core Hits 27 | . 22 5 Critical Kills . | . . . Critical Parts Destroyed . | . . . Critical Strikes . | . . . Melee Attacks . | . . . Impact . | . . . Slashing . | . . . Piercing . | . . . Sneak Attacks . | . . . Combat Hostiles . | . . . Follow-up Attacks . | . . . Damage Inflicted 637 | . 584 53 Guns 498 | . 454 44 Cannons . | . . . Explosions 130 | . 130 . Melee . | . . . Ramming 9 | . . 9 Kinetic 498 | . 454 44 Thermal . | . . . Explosive 130 | . 130 . Electromagnetic . | . . . Impact . | . . . Slashing . | . . . Piercing . | . . . Highest Corruption 4 | . . 4 Average Corruption 4 | . . 4 Corruption Purged . | . . . Corruption Blocked . | . . . Overload Shots . | . . . Overflow Damage . | . . . Projectiles . | . . . Explosions . | . . . Melee . | . . . Knockbacks . | . . . Impact . | . . . Kinetic . | . . . Secondary . | . . . Self-Inflicted Damage 4 | . . 4 Shots . | . . . Rammed 2 | . . 2 Targets Rammed 2 | . . 2 Kicked . | . . . Crushed . | . . . Highest Temperature 107 | . 107 . Average Temperature 38 | . 38 . Received Heat Transfer 141 | . 141 . Siege Activations . | . . . Robots Corrupted . | . . . Combat Hostiles . | . . . Parts Fried . | . . . Impact Corruptions . | . . . Robots Melted . | . . . Combat Hostiles . | . . . Parts Melted . | . . . Heat Transferred . | . . . Parts Sabotaged . | . . . Parts Stolen . | . . . Parts Stripped . | . . . Power Chain Reactions . | . . . Alert | -11 -10 -10 ------- Run | Yrd Mat Min Peak Influence 299 | . 299 38 Initial 38 | . . 38 Average 141 | . 183 32 Maximum Alert Level 1 | . 1 . Low Security (%) 55 | 100 40 100 Level 1 44 | . 59 . Level 2 . | . . . Level 3 . | . . . Level 4 . | . . . Level 5 . | . . . High Security . | . . . Max Security . | . . . Squads Dispatched 1 | . 1 . Investigation . | . . . Extermination . | . . . Reinforcement 1 | . 1 . Assault . | . . . Garrison . | . . . Intercept . | . . . Searches Triggered . | . . . Construction Impeded . | . . . Haulers Reinforced . | . . . Active Scanning Responses . | . . . Cargo Convoy Interrupts . | . . . Stealth | -11 -10 -10 --------- Run | Yrd Mat Min Distress Signals 2 | . 2 . Communications Jammed . | . . . Distress Signals . | . . . Times Spotted 22 | . 13 9 Peak Tracking Total 7 | . 4 7 Tactical Retreats . | . . . Traps | -11 -10 -10 ------- Run | Yrd Mat Min Traps Triggered . | . . . Indirectly . | . . . Trap Hack Attempts . | . . . Triggered . | . . . Disarmed . | . . . Reprogrammed . | . . . Reused . | . . . Traps Extracted . | . . . Installed . | . . . Triggered . | . . . Machines | -11 -10 -10 ---------- Run | Yrd Mat Min Machines Disabled . | . . . Max in Single Turn . | . . . Machines Repaired . | . . . Machines Dismantled . | . . . Machines Sabotaged . | . . . Overloaded Fab Kills . | . . . Hacking | -11 -10 -10 --------- Run | Yrd Mat Min Machines Accessed 3 | . 3 . Terminals 3 | . 3 . Fabricators . | . . . Repair Stations . | . . . Recycling Units . | . . . Scanalyzers . | . . . Garrison Access . | . . . Total Hacks 5 | . 5 . Successful 2 | . 2 . Failed 3 | . 3 . Catastrophic . | . . . Database Lockouts . | . . . Manual . | . . . Terminals 5 | . 5 . Fabricators . | . . . Repair Stations . | . . . Recycling Units . | . . . Scanalyzers . | . . . Garrison Access . | . . . Terminal Hacks 2 | . 2 . Robot Analysis 1 | . 1 . Locate Traps 1 | . 1 . Fabricator Hacks . | . . . Repair Station Hacks . | . . . Recycling Unit Hacks . | . . . Scanalyzer . | . . . Garrison Access Hacks . | . . . Unauthorized Hacks . | . . . Terminals . | . . . Fabricators . | . . . Repair Stations . | . . . Recycling Units . | . . . Scanalyzers . | . . . Garrison Access . | . . . Data Cores Recovered . | . . . Used . | . . . Hacking Detections 2 | . 2 . Full Trace Events . | . . . Feedback Events . | . . . Feedback Blocked . | . . . Robot Schematics Acquired . | . . . Robots Built . | . . . Authchips . | . . . Time . | . . . Total Robot Build Rating . | . . . Part Schematics Acquired . | . . . Parts Built . | . . . Authchips . | . . . Time . | . . . Total Part Build Rating . | . . . Parts Repaired . | . . . Time . | . . . Parts Recycled . | . . . Recycled Matter . | . . . Retrieved Matter . | . . . Retrieved Components . | . . . Parts Scanalyzed . | . . . Part Schematics Acquired . | . . . Parts Damaged . | . . . Bothacking | -11 -10 -10 ------------ Run | Yrd Mat Min Used RIF Installer . | . . . Robots Hacked . | . . . Non-combat . | . . . Combat . | . . . Robot Hacks Applied . | . . . Relay Couplers Released . | . . . Fabnet Peak Effective % . | . . . Robots Rewired . | . . . Allies Hacked . | . . . Hacks Repelled . | . . . Allies | -11 -10 -10 -------- Run | Yrd Mat Min Total Allies . | . . . Largest Group . | . . . Highest-Rated Group . | . . . Highest-Rated Ally . | . . . Total Orders . | . . . Ally Attacks . | . . . Total Damage . | . . . Kills . | . . . Allies Corrupted . | . . . Allies Melted . | . . . Intel | -11 -10 -10 ------- Run | Yrd Mat Min Robot Analysis Total 1 | . 1 . Derelict Logs Recovered . | . . . Drone Launches . | . . . Drone Recoveries . | . . . Exploration | -11 -10 -10 ------------- Run | Yrd Mat Min Turns Passed 557 | 62 415 80 Spaces Moved 383 | 49 276 58 Core 4 | 4 . . Treads . | . . . Legs . | . . . Wheels 379 | 45 276 58 Hover . | . . . Flight . | . . . Fastest Speed 50 | 50 100 100 Average Speed 99 | 95 100 100 Slowest Speed 100 | 100 100 100 Overloaded Moves . | . . . Propulsion Burnouts . | . . . Robots Hopped . | . . . Cave-ins Triggered . | . . . Exploration Rate (%) 19 | 3 39 17 Regions Visited 2 Branch Regions 1 Pre-discovered Areas . | . . . Known Exits Taken 1 | . 1 . Unknown Exits Taken 1 | 1 . . Scrap Searched 1 | . . 1 Spaces Dug . | . . . Terrain Destroyed 6 | . 6 . Melee . | . . . Projectile . | . . . AOE 6 | . 6 . Terrain Rammed . | . . . Walls Destroyed . | . . . Machines Disabled . | . . . Actions | -11 -10 -10 --------- Run | Yrd Mat Min Total 489 | 64 353 72 Wait 31 | . 24 7 Move 381 | 48 275 58 Hop . | . . . Pick Up 18 | 8 10 . Fast Attach . | . . . Attach 11 | 7 4 . Detach 2 | 1 1 . Swap . | . . . Drop 2 | . 2 . Fire 42 | . 37 5 Melee . | . . . Ram 2 | . . 2 Kick . | . . . Crush . | . . . Escape Stasis . | . . . Rewire . | . . . Trap . | . . . Miscellaneous . | . . . Route ------- -11/Scrapyard -10/Materials (discovered 2 exits: *Mat / *Min) -10/Mines History --------- Turn | Location | Event 25 | -11/Scrapyard | Discovered new exit (range 15) 63 | -11/Scrapyard | Entered Materials 150 | -10/Materials | Discovered new exit (range 9) 303 | -10/Materials | Build established: Mutant 375 | -10/Materials | Discovered new exit (range 9) 403 | -10/Materials | Identified exit to Materials 477 | -10/Materials | Identified exit to Mines 478 | -10/Materials | Entered Mines 488 | -10/Mines | Assembled infested the area 493 | -10/Mines | Assisted by a Guerilla fighting off Assembled 546 | -10/Mines | Core integrity fell below 50% 553 | -10/Mines | Core integrity fell below 20% 558 | -10/Mines | Destroyed by D-53 Grenadier with Mini Grenade Launcher Last Messages --------------- 00543_ as-73451 destroyed. 00545_ U-05 Engineer lays Concrete. 00547_ K-01 Serf collects debris. 00547_ Lgt. Assault Rifle destroyed. 00547_ Com. Wheel destroyed. 00547_ U-05 Engineer destroyed. 00552_ R-06 Scavenger collects Corrupted Flexi-carbon Leg. 00553_ The unstable cave ceiling collapses. 00554_ Lgt. Ion Engine crushed. 00554_ T-07 Excavator destroyed. 00554_ K-01 Serf collects debris. 00554_ Searching scrap... 00554_ Found Mining Claw. 00554_ Found 42 Matter. 00556_ Ion Engine destroyed. 00557_ as-07503 destroyed. 00557_ as-99049 destroyed. 00558_ The unstable cave ceiling collapses. 00558_ Lgt. Assault Rifle destroyed. Map ----- +----------------------------------------------------+ | ?????????????????????????????????????### ???????? | | ????????????????????????????????????? ????? | | ????????????????????????????????????? ???? | | ???????????????????????????????????? ??? | | ????????????????????????????????????? ??? | | ????????????????????????????????????? ??? ?? | | ????????????????????????????????????? ?? ??? | | ????????????????????????????????????? #? ???? | | ?????????????????????????????????????# ## ?????? | | ????????????????????? ???????????????# # ??????? | | ????????????????????? ??????????????# ???????? | | ?????????????????????? ??????????????# #????????? | | ?????????????????????? #?????????????# #????????? | | ?????????????????????? ??????????#### ###??????? | | ??????????????????????# ??????????# #??????? | | ??????????????????????# ??????????# #??????? | | ????????????????????### ########### #??????? | | ????????????????????# #??????? | | ????????????????????# # """ #??????? | | ????????????????????# % # """ #??????? | | ????????????????????## = """ #??????? | | ????????????????????# =! d #??????? | | ?????????????######## % #### ##??????? | | ?????????? s / =d #??# #???????? | | ????????????????###### # ## ###?## #???????? | | ?????????????????????# @ ## #"##### #???????? | | ?????????????????????##### %" % ##??????? | | ????????????????????????# ##### #??????? | | ????????????????????????# #???## #???? | | ????????????????????????## #????###### #???? | | ?????????????????????????## ##??????????####???? | | ??????????????????????????#####??????????????????? | | ?????????????????????????????????????????????????? | | ?????????????????????????????????????????????????? | | ?????????????????????????????????????????????????? | | ?????????????????????????????????????????????????? | | ?????????????????????????????????????????????????? | | ?????????????????????????????????????????????????? | | ?????????????????????????????????????????????????? | | | | | | | | | | | | | | | | | | | | | | | +----------------------------------------------------+ Best States ------------- Heat Dissipation 25 Energy Generation 10 Energy Capacity 250 Matter Stores 300 Matter Capacity 300 Sight Range 16 Terrain Scan Density 10 Armor Coverage 150 Evasion (%) 40 Item Schematics ----------------- None Robot Schematics ------------------ None Fabricated ------------ Nothing Alien Tech Used ----------------- None Achievements -------------- None Challenges ------------ None Game ------ Seed ScrapoidCoolantSpoofer Manual? 0 Play Time 00:07:43 Cumulative 16.7 hours Start 2025.05.04 @ 13:59:26 End 2025.05.04 @ 14:06:37 Sessions 1 Manual Loads 0 Difficulty Rogue Special Mode None Game No. 28 Rogue 15 Adventurer 13 Explorer 0 Win Type - Total 0 Types 0/0/0/0/0/0/0/0/0 Lore% 11 Gallery% 23 Achievement% 23 Wizard Run 0 Options --------- Layout 1 ASCII 0 Keyboard 1 Movement Numpad Keybinds 0 Fullscreen 2 Font 24/Smallcaps Map View 50x35 Zoom Use 0% Tactical HUD 1 Map Filters NONE Filters NONE Steam 1 RUN: c96beb0f-951e-421f-adfe-4f306a601b87